fUST/lending_fUST_20250830
["ID","MTS","AMOUNT","RATE_DAILY","PERIOD"]
[382264582,1756554642825,-681.87,0.00019178,2]
[382264584,1756554642834,-480.0,0.00019178,2]
[382264586,1756554642844,-480.0,0.00019178,2]
[382264587,1756554642854,-480.0,0.00019178,2]
[382264588,1756554642865,-480.0,0.00019178,2]
[382264590,1756554642875,-480.0,0.00019178,2]
[382264591,1756554642884,-480.0,0.00019178,2]
[382264592,1756554642895,-480.0,0.00019178,2]
[382264593,1756554642906,-480.0,0.00019178,2]
[382264594,1756554642916,-480.0,0.00019178,2]
[382264595,1756554642927,-480.0,0.00019178,2]
[382264596,1756554642938,-480.0,0.00019178,2]
[382264597,1756554642947,-500.49,0.00019178,2]
[382264598,1756554642958,-579.87,0.00019178,2]
[382264599,1756554642968,-480.0,0.00019178,2]
[382264600,1756554642977,-306.40769013,0.00019178,2]
[382264602,1756554642987,-480.0,0.00019178,2]
[382264603,1756554642996,-480.0,0.00019178,2]
[382264604,1756554643014,-480.0,0.00019178,2]
[382264605,1756554643026,-175.00450516,0.00019178,2]
[382264607,1756554643035,-480.0,0.00019178,2]
[382264608,1756554643044,-480.0,0.00019178,2]
[382264609,1756554643053,-480.0,0.00019178,2]
[382264610,1756554643063,-639.53,0.00019178,2]
[382264611,1756554643073,-480.0,0.00019178,2]
[382264612,1756554643083,-480.0,0.00019178,2]
[382264614,1756554643092,-480.0,0.00019178,2]
[382264615,1756554643102,-480.0,0.00019178,2]
[382264616,1756554643112,-485.12393942,0.00019178,2]
[382264617,1756554643122,-480.0,0.00019178,2]
[382264618,1756554643132,-480.0,0.00019178,2]
[382264619,1756554643142,-633.69,0.00019178,2]
[382264620,1756554643154,-480.0,0.00019178,2]
[382264621,1756554643164,-480.0,0.00019178,2]
[382264622,1756554643175,-480.0,0.00019178,2]
[382264623,1756554643184,-480.0,0.00019178,2]
[382264624,1756554643193,-296.88828713,0.00019178,2]
[382264625,1756554643203,-170.875051,0.00019178,2]
[382264626,1756554643213,-541.1,0.00019178,2]
[382264627,1756554643224,-1228.22,0.00019178,2]
[382264628,1756554643375,-480.0,0.00019178,2]
[382264629,1756554643404,-480.0,0.00019178,2]
[382264630,1756554643414,-480.0,0.00019178,2]
[382264631,1756554643424,-1127.92,0.00019178,2]
[382264632,1756554643433,-480.0,0.00019178,2]
[382264633,1756554643443,-480.0,0.00019178,2]
[382264634,1756554643452,-821.44,0.00019178,2]
[382264635,1756554643462,-480.0,0.00019178,2]
[382264636,1756554643473,-480.0,0.00019178,2]
[382264637,1756554643482,-799.92,0.00019178,2]
[382264638,1756554643492,-480.0,0.00019178,2]
[382264639,1756554643502,-480.0,0.00019178,2]
[382264640,1756554643516,-1449.1,0.00019178,2]
[382264641,1756554643526,-480.0,0.00019178,2]
[382264642,1756554643535,-485.36376291,0.00019178,2]
[382264643,1756554643545,-480.0,0.00019178,2]
[382264644,1756554643555,-480.0,0.00019178,2]
[382264645,1756554643564,-480.0,0.00019178,2]
[382264646,1756554643574,-480.0,0.00019178,2]
[382264647,1756554643585,-883.21,0.00019178,2]
[382264648,1756554643594,-480.0,0.00019178,2]
[382264649,1756554643604,-480.0,0.00019178,2]
[382264650,1756554643613,-480.0,0.00019178,2]
[382264651,1756554643622,-480.0,0.00019178,2]
[382264652,1756554643632,-480.0,0.00019178,2]
[382264653,1756554643642,-480.0,0.00019178,2]
[382264654,1756554643651,-480.0,0.00019178,2]
[382264655,1756554643660,-480.0,0.00019178,2]
[382264656,1756554643670,-480.0,0.00019178,2]
[382264657,1756554643679,-480.0,0.00019178,2]
[382264658,1756554643688,-480.0,0.00019178,2]
[382264659,1756554643698,-480.0,0.00019178,2]
[382264660,1756554643707,-1387.97,0.00019178,2]
[382264661,1756554643716,-480.0,0.00019178,2]
[382264662,1756554643726,-480.0,0.00019178,2]
[382264663,1756554643735,-584.59,0.00019178,2]
[382264664,1756554643745,-763.31,0.00019178,2]
[382264665,1756554643755,-480.0,0.00019178,2]
[382264666,1756554643764,-480.0,0.00019178,2]
[382264667,1756554643773,-161.83628368,0.00019178,2]
[382264668,1756554643783,-480.0,0.00019178,2]
[382264669,1756554643792,-480.0,0.00019178,2]
[382264670,1756554643801,-854.01,0.00019178,2]
[382264671,1756554643811,-480.0,0.00019178,2]
[382264672,1756554643820,-480.0,0.00019178,2]
[382264673,1756554643829,-480.0,0.00019178,2]
[382264674,1756554643838,-481.2,0.00019178,2]
[382264675,1756554643848,-480.0,0.00019178,2]
[382264676,1756554643858,-532.67,0.00019178,2]
[382264677,1756554643867,-480.0,0.00019178,2]
[382264678,1756554643876,-480.0,0.00019178,2]
[382264679,1756554643885,-608.42,0.00019178,2]
[382264680,1756554643895,-480.0,0.00019178,2]
[382264681,1756554643904,-480.0,0.00019178,2]
[382264682,1756554643913,-480.0,0.00019178,2]
[382264683,1756554643923,-1196.51,0.00019178,2]
[382264684,1756554643932,-480.0,0.00019178,2]
[382264685,1756554643941,-576.06,0.00019178,2]
[382264686,1756554643950,-486.85146255,0.00019178,2]
[382264687,1756554643960,-733.06,0.00019178,2]
[382264688,1756554643969,-480.0,0.00019178,2]
[382264689,1756554643978,-480.0,0.00019178,2]
[382264690,1756554643988,-555.82,0.00019178,2]
[382264691,1756554643997,-480.0,0.00019178,2]
[382264692,1756554644006,-480.0,0.00019178,2]
[382264693,1756554644015,-1643.31,0.00019178,2]
[382264694,1756554644024,-480.0,0.00019178,2]
[382264695,1756554644034,-480.0,0.00019178,2]
[382264696,1756554644045,-1001.89,0.00019178,2]
[382264697,1756554644055,-480.0,0.00019178,2]
[382264698,1756554644064,-676.91,0.00019178,2]
[382264699,1756554644073,-480.0,0.00019178,2]
[382264700,1756554644083,-480.0,0.00019178,2]
[382264701,1756554644092,-480.0,0.00019178,2]
[382264702,1756554644102,-480.0,0.00019178,2]
[382264703,1756554644111,-480.0,0.00019178,2]
[382264704,1756554644120,-480.0,0.00019178,2]
[382264705,1756554644129,-480.0,0.00019178,2]
[382264706,1756554644139,-533.45,0.00019178,2]
[382264707,1756554644148,-1030.35,0.00019178,2]
[382264708,1756554644159,-847.06,0.00019178,2]
[382264709,1756554644168,-480.0,0.00019178,2]
[382264710,1756554644178,-480.0,0.00019178,2]
[382264711,1756554644187,-1269.01,0.00019178,2]
[382264712,1756554644196,-1445.33,0.00019178,2]
[382264713,1756554644206,-1235.66,0.00019178,2]
[382264714,1756554644216,-480.0,0.00019178,2]
[382264715,1756554644226,-480.0,0.00019178,2]
[382264716,1756554644236,-480.0,0.00019178,2]
[382264717,1756554644246,-480.0,0.00019178,2]
[382264718,1756554644256,-480.0,0.00019178,2]
[382264719,1756554644265,-480.0,0.00019178,2]
[382264720,1756554644275,-480.0,0.00019178,2]
[382264721,1756554644285,-1402.41,0.00019178,2]
[382264722,1756554644294,-1605.1,0.00019178,2]
[382264723,1756554644304,-1181.98,0.00019178,2]
[382264724,1756554644313,-480.0,0.00019178,2]
[382264725,1756554644324,-480.0,0.00019178,2]
[382264726,1756554644334,-480.0,0.00019178,2]
[382264727,1756554644344,-480.0,0.00019178,2]
[382264728,1756554644353,-480.0,0.00019178,2]
[382264729,1756554644363,-531.47471943,0.00019178,2]
[382264730,1756554644372,-595.86,0.00019178,2]
[382264731,1756554644382,-480.0,0.00019178,2]
[382264732,1756554644392,-480.0,0.00019178,2]
[382264733,1756554644402,-480.0,0.00019178,2]
[382264734,1756554644411,-485.13,0.00019178,2]
[382264735,1756554644420,-480.0,0.00019178,2]
[382264736,1756554644430,-1481.29,0.00019178,2]
[382264737,1756554644439,-659.85,0.00019178,2]
[382264738,1756554644449,-480.0,0.00019178,2]
[382264739,1756554644459,-480.0,0.00019178,2]
[382264740,1756554644468,-405.54603907,0.00019178,2]
[382264741,1756554644478,-480.0,0.00019178,2]
[382264742,1756554644487,-1235.92,0.00019178,2]
[382264743,1756554644496,-480.0,0.00019178,2]
[382264744,1756554644506,-480.0,0.00019178,2]
[382264745,1756554644524,-1456.52,0.00019178,2]
[382264746,1756554644533,-480.0,0.00019178,2]
[382264747,1756554644544,-480.0,0.00019178,2]
[382264748,1756554644553,-502.23,0.00019178,2]
[382264749,1756554644563,-480.0,0.00019178,2]
[382264750,1756554644573,-480.0,0.00019178,2]
[382264751,1756554644582,-480.0,0.00019178,2]
[382264752,1756554644592,-545.82,0.00019178,2]
[382264753,1756554644601,-480.0,0.00019178,2]
[382264754,1756554644611,-480.0,0.00019178,2]
[382264755,1756554644622,-480.0,0.00019178,2]
[382264756,1756554644631,-480.0,0.00019178,2]
[382264757,1756554644642,-793.83,0.00019178,2]
[382264758,1756554644652,-480.0,0.00019178,2]
[382264759,1756554644662,-518.51,0.00019178,2]
[382264760,1756554644672,-559.98,0.00019178,2]
[382264761,1756554644682,-480.0,0.00019178,2]
[382264762,1756554644694,-500.42,0.00019178,2]
[382264763,1756554644705,-480.0,0.00019178,2]
[382264764,1756554644715,-480.0,0.00019178,2]
[382264765,1756554644725,-631.66,0.00019178,2]
[382264766,1756554644735,-544.04,0.00019178,2]
[382264767,1756554644746,-480.0,0.00019178,2]
[382264768,1756554644756,-480.0,0.00019178,2]
[382264769,1756554644766,-480.0,0.00019178,2]
[382264770,1756554644776,-880.7,0.00019178,2]
[382264771,1756554644786,-480.0,0.00019178,2]
[382264772,1756554644795,-480.0,0.00019178,2]
[382264773,1756554644804,-480.0,0.00019178,2]
[382264774,1756554644814,-618.9092344,0.00019178,2]
[382264775,1756554644824,-480.0,0.00019178,2]
[382264776,1756554644834,-480.0,0.00019178,2]
[382264777,1756554644843,-480.0,0.00019178,2]
[382264778,1756554644855,-480.0,0.00019178,2]
[382264779,1756554644864,-480.0,0.00019178,2]
[382264780,1756554644873,-480.0,0.00019178,2]
[382264781,1756554644882,-480.0,0.00019178,2]
[382264782,1756554644892,-480.0,0.00019178,2]
[382264783,1756554644901,-708.46,0.00019178,2]
[382264784,1756554644911,-480.0,0.00019178,2]
[382264785,1756554644921,-311.52588648,0.00019178,2]
[382264786,1756554644933,-4415.64,0.00019178,2]
[382264787,1756554644944,-568.33,0.00019178,2]
[382264788,1756554644953,-480.0,0.00019178,2]
[382264789,1756554644963,-640.29,0.00019178,2]
[382264790,1756554644972,-1592.61,0.00019178,2]
[382264791,1756554644982,-480.0,0.00019178,2]
[382264792,1756554644991,-480.0,0.00019178,2]
[382264793,1756554645000,-480.0,0.00019178,2]
[382264794,1756554645010,-480.0,0.00019178,2]
[382264795,1756554645019,-1324.65,0.00019178,2]
[382264796,1756554645028,-481.99166166,0.00019178,2]
[382264797,1756554645038,-480.0,0.00019178,2]
[382264798,1756554645048,-490.47045708,0.00019178,2]
[382264799,1756554645057,-684.64,0.00019178,2]
[382264800,1756554645067,-480.0,0.00019178,2]
[382264801,1756554645076,-480.0,0.00019178,2]
[382264802,1756554645086,-481.98333524,0.00019178,2]
[382264803,1756554645096,-480.0,0.00019178,2]
[382264804,1756554645105,-551.86,0.00019178,2]
[382264805,1756554645114,-545.77,0.00019178,2]
[382264806,1756554645123,-480.0,0.00019178,2]
[382264807,1756554645133,-480.0,0.00019178,2]
[382264808,1756554645142,-480.0,0.00019178,2]
[382264809,1756554645151,-480.0,0.00019178,2]
[382264810,1756554645160,-3033.66,0.00019178,2]
[382264811,1756554645170,-480.0,0.00019178,2]
[382264812,1756554645179,-1724.66,0.00019178,2]
[382264813,1756554645189,-480.0,0.00019178,2]
[382264814,1756554645198,-1635.02,0.00019178,2]
[382264815,1756554645207,-480.0,0.00019178,2]
[382264816,1756554645217,-480.0,0.00019178,2]
[382264817,1756554645226,-480.0,0.00019178,2]
[382264818,1756554645235,-480.0,0.00019178,2]
[382264819,1756554645244,-480.0,0.00019178,2]
[382264820,1756554645254,-717.16,0.00019178,2]
[382264821,1756554645263,-480.0,0.00019178,2]
[382264822,1756554645272,-480.0,0.00019178,2]
[382264823,1756554645282,-480.0,0.00019178,2]
[382264824,1756554645292,-637.14,0.00019178,2]
[382264825,1756554645301,-480.0,0.00019178,2]
[382264826,1756554645310,-480.0,0.00019178,2]
[382264827,1756554645319,-480.0,0.00019178,2]
[382264828,1756554645329,-480.0,0.00019178,2]
[382264829,1756554645338,-524.74590697,0.00019178,2]
[382264830,1756554645347,-480.0,0.00019178,2]
[382264831,1756554645358,-480.0,0.00019178,2]
[382264832,1756554645367,-480.0,0.00019178,2]
[382264833,1756554645376,-480.0,0.00019178,2]
[382264834,1756554645385,-500.0,0.00019178,2]
[382264835,1756554645395,-480.0,0.00019178,2]
[382264836,1756554645403,-480.0,0.00019178,2]
[382264837,1756554645413,-745.81,0.00019178,2]
[382264838,1756554645422,-480.0,0.00019178,2]
[382264839,1756554645431,-480.0,0.00019178,2]
[382264840,1756554645440,-480.0,0.00019178,2]
[382264841,1756554645450,-480.0,0.00019178,2]
[382264842,1756554645459,-480.0,0.00019178,2]
[382264843,1756554645468,-480.0,0.00019178,2]
[382264844,1756554645478,-480.0,0.00019178,2]
[382264845,1756554645487,-480.0,0.00019178,2]
[382264846,1756554645496,-1328.75,0.00019178,2]
[382264847,1756554645507,-480.0,0.00019178,2]
[382264848,1756554645521,-161.94451285,0.00019178,2]
[382264849,1756554645531,-480.0,0.00019178,2]
[382264850,1756554645541,-480.0,0.00019178,2]
[382264851,1756554645550,-1205.95,0.00019178,2]
[382264852,1756554645561,-480.0,0.00019178,2]
[382264853,1756554645571,-587.11,0.00019178,2]
[382264854,1756554645580,-480.0,0.00019178,2]
[382264855,1756554645590,-482.67282792,0.00019178,2]
[382264856,1756554645600,-483.97797597,0.00019178,2]
[382264857,1756554645610,-480.0,0.00019178,2]
[382264858,1756554645619,-1123.89,0.00019178,2]
[382264859,1756554645628,-546.42,0.00019178,2]
[382264860,1756554645638,-480.0,0.00019178,2]
[382264861,1756554645647,-1353.76,0.00019178,2]
[382264862,1756554645656,-480.0,0.00019178,2]
[382264863,1756554645665,-572.91,0.00019178,2]
[382264864,1756554645675,-480.0,0.00019178,2]
[382264865,1756554645685,-1443.78,0.00019178,2]
[382264867,1756554645694,-481.15793643,0.00019178,2]
[382264868,1756554645704,-1715.76,0.00019178,2]
[382264869,1756554645713,-1240.54,0.00019178,2]
[382264870,1756554645723,-480.0,0.00019178,2]
[382264871,1756554645732,-480.0,0.00019178,2]
[382264872,1756554645741,-499.86,0.00019178,2]
[382264873,1756554645751,-480.0,0.00019178,2]
[382264874,1756554645761,-480.0,0.00019178,2]
[382264875,1756554645770,-480.0,0.00019178,2]
[382264876,1756554645779,-682.06,0.00019178,2]
[382264877,1756554645789,-480.0,0.00019178,2]
[382264878,1756554645798,-779.39,0.00019178,2]
[382264879,1756554645808,-480.0,0.00019178,2]
[382264880,1756554645818,-1601.41,0.00019178,2]
[382264881,1756554645827,-415.23021839,0.00019178,2]
[382264882,1756554645836,-476.6438276,0.00019178,2]
[382264883,1756554645845,-480.0,0.00019178,2]
[382264884,1756554645855,-518.82,0.00019178,2]
[382264885,1756554645864,-480.0,0.00019178,2]
[382264886,1756554645875,-480.0,0.00019178,2]
[382264887,1756554645886,-480.0,0.00019178,2]
[382264888,1756554645895,-1315.89,0.00019178,2]
[382264890,1756554645905,-1125.36,0.00019178,2]
[382264892,1756554645914,-480.0,0.00019178,2]
[382264893,1756554645923,-480.0,0.00019178,2]
[382264894,1756554645932,-1240.82,0.00019178,2]
[382264895,1756554645942,-1103.96,0.00019178,2]
[382264897,1756554645952,-480.0,0.00019178,2]
[382264898,1756554645961,-1231.93,0.00019178,2]
[382264900,1756554645970,-492.32,0.00019178,2]
[382264902,1756554645979,-1330.44,0.00019178,2]
[382264903,1756554645988,-1367.46,0.00019178,2]
[382264904,1756554645997,-480.0,0.00019178,2]
[382264905,1756554646006,-480.0,0.00019178,2]
[382264906,1756554646016,-480.0,0.00019178,2]
[382264907,1756554646025,-1415.01,0.00019178,2]
[382264908,1756554646034,-480.0,0.00019178,2]
[382264909,1756554646043,-480.0,0.00019178,2]
[382264910,1756554646053,-480.0,0.00019178,2]
[382264912,1756554646062,-549.94477294,0.00019178,2]
[382264914,1756554646071,-547.99,0.00019178,2]
[382264916,1756554646081,-480.0,0.00019178,2]
[382264917,1756554646090,-3508.38,0.00019178,2]
[382264918,1756554646099,-695.69,0.00019178,2]
[382264919,1756554646108,-481.81,0.00019178,2]
[382264920,1756554646119,-1378.87,0.00019178,2]
[382264921,1756554646128,-731.81,0.00019178,2]
[382264922,1756554646137,-1117.44,0.00019178,2]
[382264923,1756554646146,-480.0,0.00019178,2]
[382264924,1756554646155,-573.02,0.00019178,2]
[382264926,1756554646165,-746.18,0.00019178,2]
[382264927,1756554646174,-480.0,0.00019178,2]
[382264928,1756554646183,-480.0,0.00019178,2]
[382264929,1756554646192,-480.0,0.00019178,2]
[382264930,1756554646203,-650.6,0.00019178,2]
[382264931,1756554646213,-947.62,0.00019178,2]
[382264933,1756554646223,-480.0,0.00019178,2]
[382264934,1756554646233,-4729.12,0.00019178,2]
[382264935,1756554646242,-480.0,0.00019178,2]
[382264936,1756554646251,-1324.83,0.00019178,2]
[382264937,1756554646260,-1169.02,0.00019178,2]
[382264938,1756554646270,-480.0,0.00019178,2]
[382264939,1756554646280,-1073.34,0.00019178,2]
[382264940,1756554646291,-577.07,0.00019178,2]
[382264941,1756554646302,-480.0,0.00019178,2]
[382264942,1756554646313,-480.0,0.00019178,2]
[382264943,1756554646323,-1376.25,0.00019178,2]
[382264944,1756554646332,-480.0,0.00019178,2]
[382264945,1756554646343,-480.0,0.00019178,2]
[382264946,1756554646352,-480.0,0.00019178,2]
[382264947,1756554646362,-480.0,0.00019178,2]
[382264948,1756554646371,-602.78,0.00019178,2]
[382264949,1756554646380,-1478.31,0.00019178,2]
[382264950,1756554646389,-1511.74,0.00019178,2]
[382264951,1756554646399,-480.0,0.00019178,2]
[382264952,1756554646409,-1484.56,0.00019178,2]
[382264953,1756554646419,-480.0,0.00019178,2]
[382264954,1756554646429,-481.54541303,0.00019178,2]
[382264955,1756554646437,-480.0,0.00019178,2]
[382264956,1756554646596,-480.0,0.00019178,2]
[382264957,1756554646606,-480.0,0.00019178,2]
[382264958,1756554646615,-480.0,0.00019178,2]
[382264959,1756554646625,-480.0,0.00019178,2]
[382264960,1756554646634,-490.27,0.00019178,2]
[382264961,1756554646643,-480.0,0.00019178,2]
[382264962,1756554646653,-480.0,0.00019178,2]
[382264963,1756554646663,-514.88368604,0.00019178,2]
[382264964,1756554646672,-480.0,0.00019178,2]
[382264965,1756554646681,-480.0,0.00019178,2]
[382264966,1756554646691,-684.95,0.00019178,2]
[382264967,1756554646700,-480.0,0.00019178,2]
[382264968,1756554646710,-480.0,0.00019178,2]
[382264969,1756554646719,-1292.41,0.00019178,2]
[382264970,1756554646729,-480.0,0.00019178,2]
[382264971,1756554646738,-480.0,0.00019178,2]
[382264972,1756554646748,-480.0,0.00019178,2]
[382264973,1756554646758,-480.0,0.00019178,2]
[382264974,1756554646768,-480.0,0.00019178,2]
[382264975,1756554646778,-1531.53,0.00019178,2]
[382264976,1756554646787,-480.0,0.00019178,2]
[382264977,1756554646796,-568.56,0.00019178,2]
[382264978,1756554646805,-480.0,0.00019178,2]
[382264979,1756554646815,-784.3,0.00019178,2]
[382264980,1756554646824,-480.0,0.00019178,2]
[382264981,1756554646834,-1696.26,0.00019178,2]
[382264982,1756554646843,-480.0,0.00019178,2]
[382264983,1756554646852,-1296.21,0.00019178,2]
[382264984,1756554646861,-480.0,0.00019178,2]
[382264985,1756554646871,-480.0,0.00019178,2]
[382264986,1756554646879,-480.0,0.00019178,2]
[382264987,1756554646889,-768.51,0.00019178,2]
[382264988,1756554646898,-480.0,0.00019178,2]
[382264989,1756554646908,-614.95,0.00019178,2]
[382264990,1756554646917,-601.63,0.00019178,2]
[382264991,1756554646926,-480.0,0.00019178,2]
[382264992,1756554646936,-772.61,0.00019178,2]
[382264993,1756554646945,-480.0,0.00019178,2]
[382264994,1756554646954,-1333.3,0.00019178,2]
[382264995,1756554646963,-1941.5,0.00019178,2]
[382264996,1756554646972,-480.0,0.00019178,2]
[382264997,1756554646981,-480.0,0.00019178,2]
[382264998,1756554646991,-480.0,0.00019178,2]
[382264999,1756554646999,-1448.86,0.00019178,2]
[382265000,1756554647009,-480.0,0.00019178,2]
[382265001,1756554647018,-480.0,0.00019178,2]
[382265002,1756554647028,-1746.72,0.00019178,2]
[382265003,1756554647038,-864.37,0.00019178,2]
[382265004,1756554647047,-1566.73,0.00019178,2]
[382265005,1756554647057,-1231.58,0.00019178,2]
[382265006,1756554647066,-979.6,0.00019178,2]
[382265007,1756554647075,-518.03,0.00019178,2]
[382265008,1756554647084,-480.0,0.00019178,2]
[382265009,1756554647093,-3044.12,0.00019178,2]
[382265010,1756554647102,-480.0,0.00019178,2]
[382265011,1756554647111,-480.0,0.00019178,2]
[382265012,1756554647121,-480.0,0.00019178,2]
[382265013,1756554647130,-618.11,0.00019178,2]
[382265014,1756554647139,-480.0,0.00019178,2]
[382265015,1756554647149,-868.46,0.00019178,2]
[382265016,1756554647158,-486.09044466,0.00019178,2]
[382265017,1756554647168,-1754.86,0.00019178,2]
[382265018,1756554647177,-480.0,0.00019178,2]
[382265019,1756554647187,-1328.75,0.00019178,2]
[382265020,1756554647196,-1144.39,0.00019178,2]
[382265021,1756554647205,-1000.0,0.00019178,2]
[382265022,1756554647215,-623.63,0.00019178,2]
[382265023,1756554647224,-707.49,0.00019178,2]
[382265024,1756554647234,-480.0,0.00019178,2]
[382265025,1756554647243,-505.17006146,0.00019178,2]
[382265026,1756554647252,-480.0,0.00019178,2]
[382265027,1756554647262,-480.0,0.00019178,2]
[382265028,1756554647271,-722.09,0.00019178,2]
[382265029,1756554647280,-2002.53,0.00019178,2]
[382265030,1756554647289,-948.08,0.00019178,2]
[382265031,1756554647299,-480.0,0.00019178,2]
[382265032,1756554647309,-5464.59,0.00019178,2]
[382265033,1756554647318,-490.57,0.00019178,2]
[382265034,1756554647327,-480.0,0.00019178,2]
[382265035,1756554647336,-1231.24,0.00019178,2]
[382265036,1756554647346,-480.0,0.00019178,2]
[382265037,1756554647355,-480.0,0.00019178,2]
[382265038,1756554647364,-480.0,0.00019178,2]
[382265039,1756554647374,-480.0,0.00019178,2]
[382265040,1756554647383,-480.0,0.00019178,2]
[382265041,1756554647392,-538.02,0.00019178,2]
[382265042,1756554647401,-7664.88,0.00019178,2]
[382265043,1756554647411,-480.0,0.00019178,2]
[382265044,1756554647421,-1701.43,0.00019178,2]
[382265045,1756554647431,-480.0,0.00019178,2]
[382265046,1756554647440,-480.0,0.00019178,2]
[382265047,1756554647450,-480.0,0.00019178,2]
[382265048,1756554647459,-812.46,0.00019178,2]
[382265049,1756554647468,-480.0,0.00019178,2]
[382265050,1756554647478,-480.0,0.00019178,2]
[382265051,1756554647487,-2172.84,0.00019178,2]
[382265052,1756554647500,-516.53,0.00019178,2]
[382265053,1756554647512,-1200.95,0.00019178,2]
[382265054,1756554647524,-1366.29,0.00019178,2]
[382265055,1756554647534,-480.0,0.00019178,2]
[382265056,1756554647543,-1096.99,0.00019178,2]
[382265057,1756554647554,-480.0,0.00019178,2]
[382265058,1756554647563,-574.17,0.00019178,2]
[382265059,1756554647572,-480.0,0.00019178,2]
[382265060,1756554647581,-5268.55,0.00019178,2]
[382265061,1756554647592,-597.42,0.00019178,2]
[382265062,1756554647601,-645.48,0.00019178,2]
[382265063,1756554647611,-480.0,0.00019178,2]
[382265064,1756554647620,-1950.13,0.00019178,2]
[382265065,1756554647631,-485.77055894,0.00019178,2]
[382265066,1756554647640,-480.0,0.00019178,2]
[382265067,1756554647649,-480.0,0.00019178,2]
[382265068,1756554647658,-480.0,0.00019178,2]
[382265069,1756554647667,-480.0,0.00019178,2]
[382265070,1756554647677,-480.0,0.00019178,2]
[382265071,1756554647687,-480.0,0.00019178,2]
[382265072,1756554647696,-1368.69,0.00019178,2]
[382265073,1756554647706,-500.0,0.00019178,2]
[382265074,1756554647715,-655.58,0.00019178,2]
[382265075,1756554647724,-480.0,0.00019178,2]
[382265076,1756554647733,-480.0,0.00019178,2]
[382265077,1756554647743,-480.0,0.00019178,2]
[382265078,1756554647752,-480.0,0.00019178,2]
[382265079,1756554647762,-480.0,0.00019178,2]
[382265080,1756554647771,-480.0,0.00019178,2]
[382265081,1756554647780,-480.0,0.00019178,2]
[382265082,1756554647790,-1535.1,0.00019178,2]
[382265083,1756554647799,-199.83275968,0.00019178,2]
[382265084,1756554647808,-1194.41,0.00019178,2]
[382265085,1756554647818,-480.0,0.00019178,2]
[382265086,1756554647827,-973.06,0.00019178,2]
[382265087,1756554647836,-462.5377883,0.00019178,2]
[382265088,1756554647845,-480.0,0.00019178,2]
[382265089,1756554647855,-480.0,0.00019178,2]
[382265090,1756554647864,-480.0,0.00019178,2]
[382265091,1756554647873,-495.56,0.00019178,2]
[382265092,1756554647882,-480.0,0.00019178,2]
[382265093,1756554647891,-480.0,0.00019178,2]
[382265094,1756554647900,-480.0,0.00019178,2]
[382265095,1756554647909,-480.0,0.00019178,2]
[382265096,1756554647918,-480.0,0.00019178,2]
[382265097,1756554647927,-480.0,0.00019178,2]
[382265098,1756554647937,-637.85,0.00019178,2]